[Event "Late-Titled-Tuesday-Blitz-January-23-2024"]
[Site "Chess.com"]
[Date "2024.01.23"]
[Round "3"]
[White "1mbl4"]
[Black "Sacbutt"]
[Result "1-0"]
[WhiteElo "2588"]
[BlackElo "2357"]
[TimeControl "180+1"]
[EndTime "14:27:29 PST"]
[Termination "1mbl4 won by resignation"]

1. e4 {[%clk 0:03:00.9]} 1... c5 {[%clk 0:02:59.2]} 2. d4 {[%clk 0:02:59.7]}
2... cxd4 {[%clk 0:02:59]} 3. c3 {[%clk 0:03:00]} 3... dxc3 {[%clk 0:02:59.6]}
4. Nxc3 {[%clk 0:02:59.7]} 4... Nc6 {[%clk 0:03:00.2]} 5. Nf3 {[%clk 0:02:59]}
5... d6 {[%clk 0:03:00.7]} 6. Bc4 {[%clk 0:02:58.3]} 6... a6 {[%clk 0:03:01.2]}
7. O-O {[%clk 0:02:55.1]} 7... Nf6 {[%clk 0:03:01.3]} 8. h3 {[%clk 0:02:54.3]}
8... e6 {[%clk 0:03:00]} 9. Qe2 {[%clk 0:02:54.1]} 9... Be7 {[%clk 0:02:59.4]}
10. Rd1 {[%clk 0:02:54]} 10... e5 {[%clk 0:02:57]} 11. Bg5 {[%clk 0:02:49.5]}
11... O-O {[%clk 0:02:55.1]} 12. Rac1 {[%clk 0:02:46]} 12... Be6 {[%clk
0:02:47.7]} 13. Be3 {[%clk 0:02:17.4]} 13... Bxc4 {[%clk 0:02:39.7]} 14. Qxc4
{[%clk 0:02:18.3]} 14... Rc8 {[%clk 0:02:38.2]} 15. Qb3 {[%clk 0:02:14]} 15...
b5 {[%clk 0:02:33.3]} 16. a4 {[%clk 0:02:03.7]} 16... Na5 {[%clk 0:02:12.9]} 17.
Qa2 {[%clk 0:01:49]} 17... b4 {[%clk 0:02:06.1]} 18. Nd5 {[%clk 0:01:47.6]}
18... Rxc1 {[%clk 0:01:53.5]} 19. Rxc1 {[%clk 0:01:42.4]} 19... b3 {[%clk
0:01:44.2]} 20. Qa3 {[%clk 0:01:30.1]} 20... Nxd5 {[%clk 0:01:18.3]} 21. exd5
{[%clk 0:01:31]} 21... Qb8 {[%clk 0:01:14.8]} 22. Nxe5 {[%clk 0:01:28.5]} 22...
Rc8 {[%clk 0:00:42.8]} 23. Rxc8+ {[%clk 0:01:24.2]} 23... Qxc8 {[%clk
0:00:43.7]} 24. Qb4 {[%clk 0:01:24.6]} 24... Qc7 {[%clk 0:00:25.3]} 25. Nc6
{[%clk 0:01:17.4]} 25... Nxc6 {[%clk 0:00:24]} 26. Qc4 {[%clk 0:01:17.2]} 26...
Bd8 {[%clk 0:00:18.9]} 27. dxc6 {[%clk 0:01:15.6]} 27... h6 {[%clk 0:00:16.7]}
28. Qxa6 {[%clk 0:01:13.7]} 28... d5 {[%clk 0:00:15]} 29. Qb7 {[%clk 0:01:06.6]}
29... Qd6 {[%clk 0:00:11.9]} 30. Qd7 {[%clk 0:01:03.8]} 30... Qb8 {[%clk
0:00:10.9]} 31. g3 {[%clk 0:00:59.4]} 31... f6 {[%clk 0:00:07.9]} 32. Bf4 {[%clk
0:00:59.2]} 32... Qb4 {[%clk 0:00:02.2]} 33. Qxd8+ {[%clk 0:00:58.4]} 1-0

[Event "Late-Titled-Tuesday-Blitz-January-23-2024"]
[Site "Chess.com"]
[Date "2024.01.23"]
[Round "3"]
[White "Nouali_Mohamed"]
[Black "js20000"]
[Result "0-1"]
[WhiteElo "2556"]
[BlackElo "2867"]
[TimeControl "180+1"]
[EndTime "14:27:35 PST"]
[Termination "js20000 won by checkmate"]

1. e4 {[%clk 0:03:00.3]} 1... Nc6 {[%clk 0:02:59.6]} 2. Nc3 {[%clk 0:02:59.6]}
2... e6 {[%clk 0:02:58.9]} 3. d4 {[%clk 0:02:58.6]} 3... Bb4 {[%clk 0:02:57.5]}
4. d5 {[%clk 0:02:55]} 4... Nce7 {[%clk 0:02:56]} 5. Qd4 {[%clk 0:02:51.2]} 5...
Bxc3+ {[%clk 0:02:55.7]} 6. Qxc3 {[%clk 0:02:51.1]} 6... Nf6 {[%clk 0:02:56.1]}
7. dxe6 {[%clk 0:02:45.7]} 7... fxe6 {[%clk 0:02:57]} 8. Bd3 {[%clk 0:02:36.6]}
8... d6 {[%clk 0:02:51.3]} 9. e5 {[%clk 0:02:20.5]} 9... Ned5 {[%clk 0:02:48.6]}
10. Qd4 {[%clk 0:02:12.7]} 10... c5 {[%clk 0:02:48.1]} 11. Qh4 {[%clk 0:01:55]}
11... dxe5 {[%clk 0:02:46.5]} 12. Bg5 {[%clk 0:01:54.1]} 12... Bd7 {[%clk
0:02:35.8]} 13. Nf3 {[%clk 0:01:45.8]} 13... Qa5+ {[%clk 0:02:25.8]} 14. Bd2
{[%clk 0:01:44.7]} 14... Qc7 {[%clk 0:02:25.7]} 15. Bg6+ {[%clk 0:01:39.8]}
15... Ke7 {[%clk 0:02:25.6]} 16. Be4 {[%clk 0:01:36.3]} 16... Rae8 {[%clk
0:02:16.3]} 17. c4 {[%clk 0:01:18.6]} 17... Nf4 {[%clk 0:02:14.3]} 18. O-O
{[%clk 0:01:06.3]} 18... h6 {[%clk 0:02:06.5]} 19. Bxf4 {[%clk 0:00:21]} 19...
exf4 {[%clk 0:02:07.2]} 20. Bg6 {[%clk 0:00:21.1]} 20... Rd8 {[%clk 0:01:58.4]}
21. Rfe1 {[%clk 0:00:21.1]} 21... Be8 {[%clk 0:01:51.6]} 22. Ne5 {[%clk
0:00:13.2]} 22... Rd4 {[%clk 0:01:37.2]} 23. Qh3 {[%clk 0:00:12.2]} 23... Qb6
{[%clk 0:01:31.9]} 24. b3 {[%clk 0:00:11.2]} 24... Rg8 {[%clk 0:01:30.8]} 25.
Re2 {[%clk 0:00:10.1]} 25... Qd6 {[%clk 0:01:20.3]} 26. Rae1 {[%clk 0:00:08.7]}
26... Rd1 {[%clk 0:01:20.3]} 27. Bxe8 {[%clk 0:00:06.4]} 27... Rxe1+ {[%clk
0:01:19.1]} 28. Rxe1 {[%clk 0:00:07.3]} 28... Rxe8 {[%clk 0:01:19.3]} 29. Qh4
{[%clk 0:00:06.1]} 29... Qd2 {[%clk 0:01:16]} 30. Nf3 {[%clk 0:00:06.2]} 30...
Qd6 {[%clk 0:01:13.9]} 31. Ne5 {[%clk 0:00:06.5]} 31... Qd2 {[%clk 0:00:59.8]}
32. Nf3 {[%clk 0:00:06.3]} 32... Qxa2 {[%clk 0:00:56.2]} 33. Qxf4 {[%clk
0:00:06.5]} 33... Qa5 {[%clk 0:00:56.4]} 34. Ne5 {[%clk 0:00:05.9]} 34... Qxe1#
{[%clk 0:00:56]} 0-1

[Event "Late-Titled-Tuesday-Blitz-January-23-2024"]
[Site "Chess.com"]
[Date "2024.01.23"]
[Round "3"]
[White "masnyszachistaaa"]
[Black "Grischuk"]
[Result "0-1"]
[WhiteElo "2538"]
[BlackElo "3062"]
[TimeControl "180+1"]
[EndTime "14:27:36 PST"]
[Termination "Grischuk won by resignation"]

1. Nf3 {[%clk 0:03:00.9]} 1... d5 {[%clk 0:02:58.8]} 2. d4 {[%clk 0:02:58.6]}
2... Nf6 {[%clk 0:02:57.7]} 3. c4 {[%clk 0:02:58.8]} 3... c6 {[%clk 0:02:57.5]}
4. cxd5 {[%clk 0:02:56.5]} 4... cxd5 {[%clk 0:02:58.4]} 5. Nc3 {[%clk 0:02:57]}
5... Nc6 {[%clk 0:02:58.8]} 6. Bf4 {[%clk 0:02:57.2]} 6... Bf5 {[%clk
0:02:58.7]} 7. e3 {[%clk 0:02:57]} 7... e6 {[%clk 0:02:58.8]} 8. Qb3 {[%clk
0:02:57.5]} 8... Bb4 {[%clk 0:02:56.8]} 9. Ne5 {[%clk 0:02:56.8]} 9... Bxc3+
{[%clk 0:02:50.5]} 10. Qxc3 {[%clk 0:02:48.3]} 10... Nxe5 {[%clk 0:02:50]} 11.
Bxe5 {[%clk 0:02:48.5]} 11... O-O {[%clk 0:02:49.4]} 12. Bxf6 {[%clk 0:01:27.6]}
12... Qxf6 {[%clk 0:02:47.9]} 13. Bd3 {[%clk 0:01:28.2]} 13... Rac8 {[%clk
0:02:41.5]} 14. Qd2 {[%clk 0:01:28]} 14... Qg6 {[%clk 0:02:15.3]} 15. Bxf5
{[%clk 0:01:27.8]} 15... Qxf5 {[%clk 0:02:16.2]} 16. O-O {[%clk 0:01:27.5]}
16... Rc2 {[%clk 0:02:15.5]} 17. Qb4 {[%clk 0:01:27.5]} 17... b6 {[%clk
0:02:14.8]} 18. a4 {[%clk 0:01:12.4]} 18... h5 {[%clk 0:02:00.1]} 19. a5 {[%clk
0:01:06.9]} 19... bxa5 {[%clk 0:01:54.1]} 20. Rxa5 {[%clk 0:01:07.8]} 20... Rfc8
{[%clk 0:01:54]} 21. Rxa7 {[%clk 0:00:48.6]} 21... Rxf2 {[%clk 0:01:51]} 22. Qe1
{[%clk 0:00:38.5]} 22... Rxf1+ {[%clk 0:01:45.8]} 23. Qxf1 {[%clk 0:00:38]}
23... Qxf1+ {[%clk 0:01:38.3]} 24. Kxf1 {[%clk 0:00:38.9]} 24... Rb8 {[%clk
0:01:26.3]} 25. Ra2 {[%clk 0:00:32.7]} 25... Rb3 {[%clk 0:01:26.2]} 26. Kf2
{[%clk 0:00:33]} 26... g5 {[%clk 0:01:26.4]} 27. Kf3 {[%clk 0:00:24.6]} 27...
Kg7 {[%clk 0:01:26.2]} 28. g3 {[%clk 0:00:24.2]} 28... Kg6 {[%clk 0:01:21.3]}
29. h4 {[%clk 0:00:17.3]} 29... f6 {[%clk 0:01:18.7]} 30. hxg5 {[%clk
0:00:16.4]} 30... fxg5 {[%clk 0:01:19]} 31. Ra6 {[%clk 0:00:16]} 31... Kf5
{[%clk 0:01:18.9]} 32. Ra8 {[%clk 0:00:15.5]} 32... g4+ {[%clk 0:01:16.1]} 33.
Kf2 {[%clk 0:00:14.4]} 33... Rxb2+ {[%clk 0:01:17]} 34. Kf1 {[%clk 0:00:14.1]}
34... Ke4 {[%clk 0:01:12.5]} 35. Re8 {[%clk 0:00:14.3]} 35... Kf3 {[%clk
0:01:11.3]} 36. Ke1 {[%clk 0:00:12]} 36... Re2+ {[%clk 0:01:10.7]} 37. Kf1
{[%clk 0:00:09.8]} 37... Rxe3 {[%clk 0:01:11.6]} 38. Rh8 {[%clk 0:00:06.9]}
38... Rd3 {[%clk 0:01:09]} 39. Ke1 {[%clk 0:00:06.2]} 39... Rxd4 {[%clk
0:01:07.2]} 40. Rxh5 {[%clk 0:00:06.6]} 40... Kxg3 {[%clk 0:01:07.4]} 0-1

[Event "Late-Titled-Tuesday-Blitz-January-23-2024"]
[Site "Chess.com"]
[Date "2024.01.23"]
[Round "3"]
[White "BilodeauA"]
[Black "The_Machine04"]
[Result "1-0"]
[WhiteElo "2948"]
[BlackElo "2712"]
[TimeControl "180+1"]
[EndTime "14:27:37 PST"]
[Termination "BilodeauA won on time"]

1. e4 {[%clk 0:03:00.9]} 1... d6 {[%clk 0:02:59.9]} 2. Bc4 {[%clk 0:02:59.7]}
2... Nf6 {[%clk 0:02:59.6]} 3. d3 {[%clk 0:03:00]} 3... e5 {[%clk 0:02:59]} 4.
Bb3 {[%clk 0:02:58.1]} 4... Be7 {[%clk 0:02:58.7]} 5. Nf3 {[%clk 0:02:58.3]}
5... O-O {[%clk 0:02:58.6]} 6. O-O {[%clk 0:02:58.9]} 6... c6 {[%clk 0:02:58.2]}
7. c3 {[%clk 0:02:58.4]} 7... Nbd7 {[%clk 0:02:54.8]} 8. Re1 {[%clk 0:02:58.5]}
8... h6 {[%clk 0:02:49.6]} 9. Nbd2 {[%clk 0:02:58.7]} 9... Re8 {[%clk
0:02:49.6]} 10. Nf1 {[%clk 0:02:59.1]} 10... Nf8 {[%clk 0:02:48.8]} 11. Ng3
{[%clk 0:02:59.4]} 11... Ng6 {[%clk 0:02:49.1]} 12. h3 {[%clk 0:02:57.8]} 12...
Bf8 {[%clk 0:02:47.1]} 13. d4 {[%clk 0:02:58.3]} 13... a5 {[%clk 0:02:33.3]} 14.
a4 {[%clk 0:02:58]} 14... Be6 {[%clk 0:02:28.2]} 15. Bc2 {[%clk 0:02:57.8]}
15... Qc7 {[%clk 0:02:24.8]} 16. Be3 {[%clk 0:02:57.9]} 16... Rad8 {[%clk
0:02:24.5]} 17. Qd2 {[%clk 0:02:48.9]} 17... d5 {[%clk 0:02:14.2]} 18. exd5
{[%clk 0:02:47.2]} 18... Nxd5 {[%clk 0:01:56.9]} 19. Bxg6 {[%clk 0:02:45.3]}
19... Nxe3 {[%clk 0:01:56]} 20. Rxe3 {[%clk 0:02:23.6]} 20... exd4 {[%clk
0:01:55.4]} 21. Bxf7+ {[%clk 0:02:15]} 21... Qxf7 {[%clk 0:01:40.4]} 22. cxd4
{[%clk 0:02:13.8]} 22... Bb4 {[%clk 0:01:36.6]} 23. Qc2 {[%clk 0:02:10.6]} 23...
Bd5 {[%clk 0:01:07.3]} 24. Ne5 {[%clk 0:02:10.5]} 24... Qf4 {[%clk 0:00:51.8]}
25. Rd1 {[%clk 0:02:03.7]} 25... c5 {[%clk 0:00:43.7]} 26. Nd3 {[%clk
0:01:29.7]} 26... Qg5 {[%clk 0:00:14.7]} 27. Rxe8+ {[%clk 0:01:29]} 27... Rxe8
{[%clk 0:00:15.2]} 28. dxc5 {[%clk 0:01:27]} 28... Bc6 {[%clk 0:00:11.6]} 29.
Nxb4 {[%clk 0:01:25.7]} 29... axb4 {[%clk 0:00:12.5]} 30. Qc4+ {[%clk
0:01:26.4]} 30... Kh7 {[%clk 0:00:11.6]} 31. Qxb4 {[%clk 0:01:26]} 31... Qf6
{[%clk 0:00:08.3]} 32. b3 {[%clk 0:01:08.3]} 32... Rf8 {[%clk 0:00:06.9]} 33.
Qd2 {[%clk 0:01:07]} 33... Rf7 {[%clk 0:00:05.5]} 34. Qc2+ {[%clk 0:01:01.6]}
34... Kh8 {[%clk 0:00:03.5]} 35. b4 {[%clk 0:01:02.2]} 1-0

[Event "Late-Titled-Tuesday-Blitz-January-23-2024"]
[Site "Chess.com"]
[Date "2024.01.23"]
[Round "3"]
[White "GMHess"]
[Black "FairChess_on_YouTube"]
[Result "0-1"]
[WhiteElo "2809"]
[BlackElo "3088"]
[TimeControl "180+1"]
[EndTime "14:27:42 PST"]
[Termination "FairChess_on_YouTube won by resignation"]

1. d4 {[%clk 0:02:59.9]} 1... d5 {[%clk 0:02:59.1]} 2. c4 {[%clk 0:03:00.4]}
2... dxc4 {[%clk 0:02:58.7]} 3. Nf3 {[%clk 0:02:59.9]} 3... a6 {[%clk
0:02:53.3]} 4. a4 {[%clk 0:02:50.2]} 4... Nc6 {[%clk 0:02:50.3]} 5. e4 {[%clk
0:02:33.9]} 5... Bg4 {[%clk 0:02:49.9]} 6. Bxc4 {[%clk 0:02:23.8]} 6... e6
{[%clk 0:02:44.2]} 7. Be3 {[%clk 0:02:19.2]} 7... Nf6 {[%clk 0:02:41.5]} 8. Nc3
{[%clk 0:02:19.5]} 8... Bb4 {[%clk 0:02:40.9]} 9. h3 {[%clk 0:02:11.8]} 9... Bh5
{[%clk 0:02:32.5]} 10. e5 {[%clk 0:01:36.6]} 10... Nd5 {[%clk 0:02:29.6]} 11.
Bxd5 {[%clk 0:01:30.9]} 11... Qxd5 {[%clk 0:02:30.5]} 12. O-O {[%clk 0:01:29.8]}
12... Bxc3 {[%clk 0:02:25.2]} 13. bxc3 {[%clk 0:01:30.7]} 13... Na5 {[%clk
0:02:24.1]} 14. g4 {[%clk 0:01:15.7]} 14... Bg6 {[%clk 0:02:23.3]} 15. Nd2
{[%clk 0:01:12.1]} 15... h5 {[%clk 0:02:19.3]} 16. f3 {[%clk 0:01:05]} 16...
hxg4 {[%clk 0:02:17.3]} 17. hxg4 {[%clk 0:01:05.9]} 17... O-O-O {[%clk
0:02:14.2]} 18. Kg2 {[%clk 0:00:53.1]} 18... f5 {[%clk 0:02:06.6]} 19. exf6
{[%clk 0:00:53.4]} 19... gxf6 {[%clk 0:02:06.3]} 20. Qe2 {[%clk 0:00:43.8]}
20... f5 {[%clk 0:02:03.3]} 21. Kg3 {[%clk 0:00:30.4]} 21... e5 {[%clk
0:01:55.1]} 22. f4 {[%clk 0:00:10.2]} 22... fxg4 {[%clk 0:01:47.1]} 23. Qxg4+
{[%clk 0:00:05.9]} 23... Kb8 {[%clk 0:01:47.4]} 24. fxe5 {[%clk 0:00:03.9]}
24... Rdg8 {[%clk 0:01:45.5]} 25. Bg5 {[%clk 0:00:04.3]} 25... Bh5 {[%clk
0:01:42]} 26. Qh4 {[%clk 0:00:04.3]} 26... Be2 {[%clk 0:01:40.3]} 27. Qf4 {[%clk
0:00:02.9]} 27... Bxf1 {[%clk 0:01:34.7]} 28. Rxf1 {[%clk 0:00:03.8]} 28...
Rxg5+ {[%clk 0:01:31.1]} 29. Qxg5 {[%clk 0:00:03.6]} 29... Rg8 {[%clk
0:01:31.7]} 30. Ne4 {[%clk 0:00:03.2]} 30... Rxg5+ {[%clk 0:01:29.7]} 31. Nxg5
{[%clk 0:00:04.1]} 31... Nc4 {[%clk 0:01:24.3]} 32. Kh4 {[%clk 0:00:03.3]} 32...
Qg2 {[%clk 0:01:15.2]} 33. Rf8+ {[%clk 0:00:02.8]} 33... Ka7 {[%clk 0:01:15.8]}
34. e6 {[%clk 0:00:03.4]} 34... Qh2+ {[%clk 0:01:07.3]} 35. Kg4 {[%clk
0:00:03.4]} 35... Ne3+ {[%clk 0:01:06.8]} 36. Kf3 {[%clk 0:00:03.6]} 36... Nd5
{[%clk 0:01:05.9]} 37. Ke4 {[%clk 0:00:02.8]} 37... Nxc3+ {[%clk 0:01:04.5]} 38.
Kf5 {[%clk 0:00:03.4]} 38... Qf2+ {[%clk 0:01:04]} 0-1

[Event "Late-Titled-Tuesday-Blitz-January-23-2024"]
[Site "Chess.com"]
[Date "2024.01.23"]
[Round "3"]
[White "iulik86"]
[Black "Andrii_Prydun"]
[Result "1-0"]
[WhiteElo "2598"]
[BlackElo "2394"]
[TimeControl "180+1"]
[EndTime "14:27:43 PST"]
[Termination "iulik86 won by resignation"]

1. e4 {[%clk 0:03:00.9]} 1... d5 {[%clk 0:03:00.2]} 2. exd5 {[%clk 0:03:00]}
2... Qxd5 {[%clk 0:03:01.1]} 3. Nc3 {[%clk 0:02:59.6]} 3... Qf5 {[%clk
0:03:01.7]} 4. g3 {[%clk 0:02:56.8]} 4... Nf6 {[%clk 0:03:00.8]} 5. Bg2 {[%clk
0:02:57.1]} 5... g6 {[%clk 0:03:01]} 6. Nf3 {[%clk 0:02:54.2]} 6... Bg7 {[%clk
0:03:01]} 7. O-O {[%clk 0:02:53.8]} 7... O-O {[%clk 0:03:01.2]} 8. Re1 {[%clk
0:02:54.2]} 8... Re8 {[%clk 0:02:59]} 9. d4 {[%clk 0:02:53.1]} 9... c6 {[%clk
0:02:58.4]} 10. a4 {[%clk 0:02:50.3]} 10... a5 {[%clk 0:02:57.2]} 11. Nd2 {[%clk
0:02:47.4]} 11... Na6 {[%clk 0:02:56.4]} 12. Nc4 {[%clk 0:02:46.6]} 12... Nb4
{[%clk 0:02:55.9]} 13. Ne3 {[%clk 0:02:41.3]} 13... Qh5 {[%clk 0:02:47]} 14. Bf3
{[%clk 0:02:34.1]} 14... Qh3 {[%clk 0:02:46.9]} 15. Bg2 {[%clk 0:02:26.9]} 15...
Qh5 {[%clk 0:02:46.5]} 16. Bf3 {[%clk 0:02:15.1]} 16... Qh3 {[%clk 0:02:46.2]}
17. Ne2 {[%clk 0:02:14.8]} 17... Ng4 {[%clk 0:02:27.1]} 18. Nf1 {[%clk
0:02:00.4]} 18... Nf6 {[%clk 0:01:42.2]} 19. Nf4 {[%clk 0:01:55.2]} 19... Qd7
{[%clk 0:01:41.8]} 20. c3 {[%clk 0:01:54.9]} 20... Nbd5 {[%clk 0:01:41.5]} 21.
Nd3 {[%clk 0:01:55.3]} 21... Qd8 {[%clk 0:01:13.5]} 22. Ne5 {[%clk 0:01:54.3]}
22... Bf5 {[%clk 0:01:12.5]} 23. Bg2 {[%clk 0:01:50.3]} 23... h5 {[%clk
0:01:10.2]} 24. h3 {[%clk 0:01:42.5]} 24... Rc8 {[%clk 0:01:08.1]} 25. Qb3
{[%clk 0:01:37.2]} 25... Rb8 {[%clk 0:01:05.7]} 26. Ne3 {[%clk 0:01:35]} 26...
Nxe3 {[%clk 0:01:04.1]} 27. Nxf7 {[%clk 0:01:22.1]} 27... Qc8 {[%clk 0:00:09]}
28. Rxe3 {[%clk 0:01:13.1]} 28... Nd5 {[%clk 0:00:03.8]} 29. Ng5 {[%clk
0:01:06.3]} 29... Bh6 {[%clk 0:00:03.1]} 30. Re5 {[%clk 0:01:02.8]} 30... Bxg5
{[%clk 0:00:02]} 31. Bxg5 {[%clk 0:01:02.2]} 31... e6 {[%clk 0:00:02.9]} 32.
Rae1 {[%clk 0:00:57.2]} 32... b5 {[%clk 0:00:02.6]} 33. axb5 {[%clk 0:00:55.7]}
33... cxb5 {[%clk 0:00:03.5]} 34. Bxd5 {[%clk 0:00:53.9]} 34... exd5 {[%clk
0:00:02.1]} 35. Rxe8+ {[%clk 0:00:53.7]} 1-0

[Event "Late-Titled-Tuesday-Blitz-January-23-2024"]
[Site "Chess.com"]
[Date "2024.01.23"]
[Round "3"]
[White "skoularikii"]
[Black "vladislavkovalev"]
[Result "0-1"]
[WhiteElo "2570"]
[BlackElo "2875"]
[TimeControl "180+1"]
[EndTime "14:27:53 PST"]
[Termination "vladislavkovalev won by resignation"]

1. e4 {[%clk 0:03:00.9]} 1... e5 {[%clk 0:03:00.1]} 2. Nf3 {[%clk 0:03:00.8]}
2... Nc6 {[%clk 0:03:00.6]} 3. Bb5 {[%clk 0:03:00.5]} 3... a6 {[%clk 0:03:00.6]}
4. Ba4 {[%clk 0:03:00.8]} 4... Nf6 {[%clk 0:03:00.9]} 5. d3 {[%clk 0:03:00.2]}
5... d6 {[%clk 0:02:59.8]} 6. Nc3 {[%clk 0:02:47.7]} 6... g6 {[%clk 0:02:59.7]}
7. Bxc6+ {[%clk 0:02:28.4]} 7... bxc6 {[%clk 0:03:00.6]} 8. d4 {[%clk
0:02:27.3]} 8... exd4 {[%clk 0:03:01.5]} 9. Nxd4 {[%clk 0:02:26.6]} 9... c5
{[%clk 0:02:59.1]} 10. Nc6 {[%clk 0:02:23.3]} 10... Qd7 {[%clk 0:02:59.1]} 11.
Na5 {[%clk 0:02:23.1]} 11... Bg7 {[%clk 0:02:56.7]} 12. O-O {[%clk 0:02:19.1]}
12... O-O {[%clk 0:02:56.6]} 13. Re1 {[%clk 0:02:14.2]} 13... Re8 {[%clk
0:02:54.4]} 14. h3 {[%clk 0:02:07]} 14... Rb8 {[%clk 0:02:46.1]} 15. Qd3 {[%clk
0:01:52.6]} 15... d5 {[%clk 0:02:27]} 16. Bf4 {[%clk 0:01:25.7]} 16... dxe4
{[%clk 0:01:58.3]} 17. Nxe4 {[%clk 0:01:24.6]} 17... Nxe4 {[%clk 0:01:56.3]} 18.
Rxe4 {[%clk 0:01:20.8]} 18... Rxe4 {[%clk 0:01:42.2]} 19. Qxe4 {[%clk
0:01:21.7]} 19... Rb4 {[%clk 0:01:32.5]} 20. c4 {[%clk 0:01:16]} 20... Qe6
{[%clk 0:01:11.6]} 21. Qa8 {[%clk 0:01:07.5]} 21... Bxb2 {[%clk 0:00:54.5]} 22.
Rd1 {[%clk 0:01:06.2]} 22... Kg7 {[%clk 0:00:55.1]} 23. Rd8 {[%clk 0:00:56.8]}
23... Qe1+ {[%clk 0:00:41.2]} 24. Kh2 {[%clk 0:00:56.4]} 24... Be5 {[%clk
0:00:42.1]} 25. Bxe5+ {[%clk 0:00:35.3]} 25... Qxe5+ {[%clk 0:00:43]} 26. g3
{[%clk 0:00:35.9]} 26... Rb2 {[%clk 0:00:15.1]} 27. Qf3 {[%clk 0:00:33.9]} 27...
Bf5 {[%clk 0:00:15.1]} 28. Nc6 {[%clk 0:00:27.5]} 28... Qe1 {[%clk 0:00:15.4]}
0-1

[Event "Late-Titled-Tuesday-Blitz-January-23-2024"]
[Site "Chess.com"]
[Date "2024.01.23"]
[Round "3"]
[White "egnfanclub"]
[Black "TV27"]
[Result "1-0"]
[WhiteElo "2362"]
[BlackElo "2188"]
[TimeControl "180+1"]
[EndTime "14:27:53 PST"]
[Termination "egnfanclub won by resignation"]

1. e4 {[%clk 0:03:00.9]} 1... c5 {[%clk 0:02:59.3]} 2. Nc3 {[%clk 0:03:00.4]}
2... Nc6 {[%clk 0:02:57.2]} 3. f4 {[%clk 0:03:01.3]} 3... g6 {[%clk 0:02:53.8]}
4. Nf3 {[%clk 0:03:02.2]} 4... Bg7 {[%clk 0:02:53.8]} 5. Bc4 {[%clk 0:03:02.7]}
5... e6 {[%clk 0:02:50.9]} 6. f5 {[%clk 0:03:03.1]} 6... gxf5 {[%clk 0:02:42.6]}
7. d3 {[%clk 0:03:02.7]} 7... Nd4 {[%clk 0:02:34.1]} 8. Nxd4 {[%clk 0:02:38.7]}
8... cxd4 {[%clk 0:02:04.7]} 9. Nb5 {[%clk 0:02:37.3]} 9... d5 {[%clk
0:02:04.4]} 10. exd5 {[%clk 0:02:35.7]} 10... exd5 {[%clk 0:02:04.3]} 11. Bxd5
{[%clk 0:02:35.1]} 11... Ne7 {[%clk 0:01:56]} 12. Bc4 {[%clk 0:02:28.7]} 12...
a6 {[%clk 0:01:53.5]} 13. Na3 {[%clk 0:02:28.4]} 13... b5 {[%clk 0:01:53]} 14.
Bb3 {[%clk 0:02:18.8]} 14... Bb7 {[%clk 0:01:52.6]} 15. Qh5 {[%clk 0:02:07.1]}
15... Bd5 {[%clk 0:01:08.5]} 16. O-O {[%clk 0:02:03.4]} 16... Bxb3 {[%clk
0:01:05.7]} 17. axb3 {[%clk 0:02:04.3]} 17... O-O {[%clk 0:00:54.9]} 18. Rf3
{[%clk 0:01:48.1]} 18... Nd5 {[%clk 0:00:21.4]} 19. Rh3 {[%clk 0:01:20.5]} 19...
Nf6 {[%clk 0:00:19.8]} 20. Qxf5 {[%clk 0:01:20.8]} 20... Qe8 {[%clk 0:00:18.7]}
21. Bg5 {[%clk 0:01:16.8]} 21... Qe6 {[%clk 0:00:18.6]} 22. Qf3 {[%clk
0:01:11.2]} 22... Rae8 {[%clk 0:00:15.6]} 23. Rf1 {[%clk 0:01:10.3]} 23... Ng4
{[%clk 0:00:13.3]} 24. Rg3 {[%clk 0:00:58]} 24... Ne3 {[%clk 0:00:13.2]} 25. Re1
{[%clk 0:00:53.8]} 25... Qf5 {[%clk 0:00:08.1]} 26. Rxe3 {[%clk 0:00:45.4]}
26... Qxf3 {[%clk 0:00:03.9]} 27. Rexf3 {[%clk 0:00:46.3]} 27... Re2 {[%clk
0:00:02.9]} 28. Bh6 {[%clk 0:00:43.5]} 28... Rfe8 {[%clk 0:00:02.3]} 29. Bxg7
{[%clk 0:00:40.4]} 29... Re1+ {[%clk 0:00:02]} 30. Rf1 {[%clk 0:00:39.1]} 30...
Rxf1+ {[%clk 0:00:01.7]} 31. Kxf1 {[%clk 0:00:39.1]} 31... Re3 {[%clk
0:00:02.6]} 32. Bh6+ {[%clk 0:00:38.6]} 32... Kh8 {[%clk 0:00:02.1]} 33. Bxe3
{[%clk 0:00:37.8]} 33... b4 {[%clk 0:00:03]} 34. Bxd4+ {[%clk 0:00:37.4]} 1-0